bitfinex/quotes_SOLUSD_20250118
["timestamp","ask_amount","ask_price","bid_price","bid_amount"]
[1737202834033,32.16281484,241.22,241.14,32.16281484]
[1737202834241,32.16281484,241.18,241.1,32.16281484]
[1737202835135,32.16281484,241.12,241.05,0.063]
[1737202835336,32.16281484,241.1,241.05,0.063]
[1737202838042,36.31021484,241.12,241.05,0.063]
[1737202838435,32.16281484,241.12,241.05,0.063]
[1737202838630,32.16281484,241.08,241.05,0.063]
[1737202838836,14.5144,241.14,241.05,0.063]
[1737202838837,32.16281484,241.06,241.05,0.063]
[1737202840537,32.16281484,241.15,241.05,4.2114]
[1737202840736,8.228,241.16,241.08,32.16281484]
[1737202840935,6.6329,241.23,241.15,32.16281484]
[1737202841130,6.6329,241.23,241.17,32.16281484]
[1737202841539,32.16281484,241.18,241.1,32.16281484]
[1737202842645,32.16281484,241.2,241.1,32.16281484]
[1737202842945,32.16281484,241.22,241.12,32.16281484]
[1737202843355,32.16281484,241.18,241.1,32.16281484]
[1737202843542,32.16281484,241.16,241.09,4.1477]
[1737202843740,32.16281484,241.18,241.1,32.16281484]
[1737202844241,32.16281484,241.2,241.1,32.16281484]
[1737202844434,32.16281484,241.22,241.12,32.16281484]
[1737202844634,32.16281484,241.22,241.14,32.16281484]
[1737202844835,32.16281484,241.22,241.14,36.30961484]
[1737202845433,6.6329,241.23,241.16,32.16281484]
[1737202845840,32.16281484,241.26,241.18,32.16281484]
[1737202846950,32.16281484,241.26,241.19,4.1461]
[1737202847141,32.16281484,241.2,241.12,32.16281484]
[1737202847550,32.16281484,241.22,241.14,32.16281484]
[1737202847843,32.16281484,241.25,241.16,32.16281484]
[1737202848841,32.16281484,241.27,241.18,32.16281484]
[1737202849042,32.16281484,241.27,241.19,4.1461]
[1737202849446,19.79514036,241.27,241.19,23.94124036]
[1737202849751,19.79514036,241.27,241.17,19.79514036]
[1737202849941,19.79514036,241.24,241.17,23.94144036]
[1737202850141,19.79514036,241.28,241.19,19.79514036]
[1737202850959,19.79514036,241.28,241.21,19.79514036]
[1737202851837,19.82514036,241.32,241.23,19.79514036]
[1737202852038,0.03,241.27,241.23,19.79514036]
[1737202854149,0.03,241.27,241.24,4.1452]
[1737202854956,0.03,241.27,241.25,19.79514036]
[1737202856356,0.03,241.27,241.21,4.1457]
[1737202856567,19.79514036,241.26,241.17,19.79514036]
[1737202857760,23.94014036,241.26,241.17,23.94144036]
[1737202857963,0.03,241.27,241.19,19.79514036]
[1737202859147,0.03,241.27,241.21,19.79514036]
[1737202859753,0.03,241.27,241.23,19.79514036]
[1737202860644,0.03,241.27,241.22,4.1455]
[1737202861050,0.03,241.27,241.23,19.79514036]
[1737202861671,0.03,241.27,241.22,4.1455]
[1737202862382,0.03,241.27,241.23,19.79514036]
[1737202862675,0.03,241.27,241.26,19.79514036]
[1737202863753,0.03,241.27,241.26,23.94004036]
[1737202864267,0.03,241.27,241.26,47.71692436]
[1737202864467,0.03,241.32,241.26,14.5071]
[1737202864770,0.03,241.32,241.26,34.30224036]
[1737202865369,0.03,241.32,241.27,23.776884]
[1737202865556,0.03,241.32,241.3,19.79514036]
[1737202865761,0.03,241.32,241.28,19.79514036]
[1737202866068,0.03,241.32,241.3,19.79514036]
[1737202866279,6.5375,241.4,241.31,23.776884]
[1737202866456,19.79514036,241.42,241.33,19.79514036]
[1737202866649,1.6468,241.43,241.35,19.79514036]
[1737202867073,6.5675,241.46,241.38,19.79514036]
[1737202867768,19.79514036,241.44,241.36,4.1431]
[1737202868754,26.36264036,241.46,241.37,43.57202436]
[1737202868949,6.5675,241.46,241.39,19.79514036]
[1737202869176,0.03,241.46,241.39,19.79514036]
[1737202869373,0.03,241.46,241.43,19.79514036]
[1737202869574,0.03,241.46,241.45,19.79514036]
[1737202869775,0.03,241.46,241.45,43.57202436]
[1737202870176,0.03,241.46,241.45,47.71362436]
[1737202870557,0.0001,241.46,241.45,47.71362436]
[1737202870978,0.0001,241.46,241.45,23.93674036]
[1737202872572,0.0001,241.46,241.18,6.2688]
[1737202872772,0.6211,241.46,241.34,19.79514036]
[1737202872970,0.0001,241.46,241.39,19.79514036]
[1737202873465,0.0001,241.46,241.41,19.79514036]
[1737202874072,0.0001,241.46,241.33,0.62126693]
[1737202874073,0.0001,241.46,241.39,19.79514036]
[1737202874578,0.0001,241.46,241.4,4.1425]
[1737202874982,0.0001,241.46,241.38,4.1428]
[1737202875562,0.0001,241.46,241.39,19.79514036]
[1737202875774,0.0001,241.46,241.41,19.79514036]
[1737202876666,0.0001,241.46,241.42,4.1421]
[1737202877075,0.0001,241.46,241.43,43.57202436]
[1737202877384,0.0001,241.46,241.45,19.79514036]
[1737202877584,0.0001,241.46,241.4,19.79514036]
[1737202877767,0.0001,241.46,241.38,19.79514036]
[1737202878092,0.0001,241.46,241.36,19.79514036]
[1737202878093,19.79514036,241.45,241.36,19.79514036]
[1737202878589,0.0001,241.46,241.43,20.0]
[1737202878772,0.0001,241.46,241.4,19.79514036]
[1737202879369,19.79514036,241.45,241.34,19.79514036]
[1737202879577,19.79514036,241.43,241.35,4.1432]
[1737202879887,0.0001,241.46,241.38,19.79514036]
[1737202880898,0.0001,241.46,241.39,4.1426]
[1737202881379,19.79514036,241.45,241.39,4.1426]
[1737202881572,19.79514036,241.41,241.32,19.79514036]
[1737202881770,19.79514036,241.39,241.3,23.93934036]
[1737202881975,19.79514036,241.35,241.26,19.79514036]
[1737202882179,19.79514036,241.37,241.28,19.79514036]
[1737202882392,19.79514036,241.35,241.26,19.79514036]
[1737202882576,19.79514036,241.33,241.24,19.79514036]
[1737202882895,19.79514036,241.33,241.25,27.921884]
[1737202883086,19.79514036,241.35,241.26,19.79514036]
[1737202883297,6.4964,241.4,241.28,19.79514036]
[1737202883298,19.79514036,241.37,241.28,19.79514036]
[1737202883478,19.79514036,241.39,241.3,19.79514036]
[1737202883787,19.79514036,241.35,241.25,4.145]
[1737202883988,19.79514036,241.33,241.25,4.145]
[1737202884374,19.79514036,241.35,241.29,20.0]
[1737202884578,19.79514036,241.37,241.29,23.776884]
[1737202884985,19.79514036,241.33,241.23,4.1454]
[1737202885290,19.79514036,241.33,241.24,0.59]
[1737202885472,19.79514036,241.35,241.27,19.79514036]
[1737202885676,19.79514036,241.35,241.28,23.776884]
[1737202886190,19.79514036,241.37,241.28,23.776884]
[1737202887196,19.79514036,241.35,241.25,19.79514036]
[1737202887385,19.79514036,241.31,241.26,0.59]
[1737202887691,19.79514036,241.33,241.25,4.145]
[1737202887894,19.79514036,241.33,241.25,23.94014036]
[1737202888276,19.79514036,241.33,241.28,0.063]
[1737202888470,19.79514036,241.35,241.28,23.839884]
[1737202888885,19.79514036,241.37,241.29,19.79514036]
[1737202890492,19.79514036,241.37,241.29,4.1443]
[1737202890687,10.6389,241.4,241.29,23.93944036]
[1737202891014,19.79514036,241.38,241.29,23.93944036]
[1737202891691,10.6389,241.4,241.29,23.93944036]
[1737202891894,19.79514036,241.37,241.29,23.93944036]
[1737202892703,19.79514036,241.39,241.29,23.93944036]
[1737202893000,19.79514036,241.38,241.29,23.93944036]
[1737202893299,19.79514036,241.38,241.29,19.79514036]
[1737202894226,0.621,241.38,241.28,0.063]
[1737202894386,4.1416,241.45,241.28,4.82887135]
[1737202894698,19.79514036,241.44,241.29,20.0]
[1737202894886,19.79514036,241.44,241.34,19.79514036]
[1737202895081,19.79514036,241.44,241.31,20.0]
[1737202895283,19.79514036,241.44,241.33,23.776884]
[1737202895606,19.79514036,241.44,241.35,23.776884]
[1737202895817,10.7199,241.46,241.31,20.0]
[1737202896007,19.79514036,241.41,241.32,19.79514036]
[1737202896183,19.79514036,241.41,241.3,19.79514036]
[1737202896699,19.79514036,241.39,241.3,19.79514036]
[1737202897401,19.79514036,241.36,241.28,0.063]
[1737202897590,4.1416,241.45,241.34,19.79514036]
[1737202897905,26.37364036,241.46,241.36,19.79514036]
[1737202898501,30.51514036,241.46,241.36,19.79514036]
[1737202898802,30.51514036,241.46,241.37,4.143]
[1737202899003,26.37364036,241.46,241.37,4.143]
[1737202899710,19.79524036,241.46,241.38,43.57202436]
[1737202900008,0.0001,241.46,241.38,43.57202436]
[1737202901088,0.0001,241.46,241.38,47.71462436]
[1737202901902,0.03,241.45,241.38,47.71462436]
[1737202902708,0.03,241.45,241.38,27.919484]
[1737202903215,0.03,241.45,241.39,19.79514036]
[1737202905618,0.03,241.45,241.39,23.93764036]
[1737202906103,0.03,241.45,241.39,4.1425]
[1737202906307,19.82514036,241.45,241.38,19.79514036]
[1737202906610,19.82514036,241.45,241.37,4.1428]
[1737202906812,19.79514036,241.42,241.34,23.93844036]
[1737202907022,19.79514036,241.4,241.36,2.6]
[1737202907217,19.79514036,241.38,241.29,10.4235]
[1737202907398,19.79514036,241.38,241.3,19.79514036]
[1737202907613,19.79514036,241.38,241.31,4.1439]
[1737202908013,19.79514036,241.4,241.33,20.0]
[1737202908330,19.79514036,241.44,241.36,19.79514036]
[1737202908624,0.03,241.45,241.37,23.776884]
[1737202908807,19.82514036,241.45,241.37,23.776884]
[1737202909002,19.82514036,241.45,241.38,19.79514036]
[1737202909526,19.82514036,241.45,241.39,23.776884]
[1737202909725,0.03,241.45,241.39,23.776884]
[1737202911420,19.82514036,241.45,241.34,4.1435]
[1737202911604,19.79514036,241.41,241.35,12.33]
[1737202911806,0.03,241.45,241.35,12.33]
[1737202911807,19.79514036,241.37,241.35,12.33]
[1737202912005,19.79514036,241.37,241.29,0.063]
[1737202912336,19.79514036,241.33,241.29,0.063]
[1737202912642,6.2185,241.38,241.29,0.063]
[1737202912643,19.79514036,241.31,241.29,0.063]
[1737202914117,23.93924036,241.31,241.29,0.063]
[1737202914931,19.79514036,241.31,241.29,0.063]
[1737202915136,23.93924036,241.31,241.29,0.063]
[1737202915338,0.621,241.3,241.29,0.0001]
[1737202915630,21.606,241.29,241.28,0.0001]
[1737202915815,21.40114036,241.29,241.28,0.0001]
[1737202918127,1.606,241.36,241.28,0.0001]
[1737202918329,19.79514036,241.32,241.28,0.0001]
[1737202918644,19.79514036,241.3,241.28,0.0001]
[1737202919633,1.606,241.36,241.28,0.0001]
[1737202919634,19.79514036,241.32,241.28,0.0001]
[1737202921336,19.79514036,241.3,241.28,0.0001]
[1737202922040,23.93934036,241.3,241.28,0.0001]
[1737202923324,4.1442,241.3,241.28,0.0001]
[1737202923537,19.79514036,241.29,241.28,0.0001]
[1737202926736,23.93944036,241.29,241.28,0.0001]
[1737202927447,20.0,241.25,241.21,0.063]
[1737202927639,19.79514036,241.22,241.21,0.063]
[1737202928640,23.94064036,241.22,241.21,0.063]
[1737202929541,68.13366472,241.22,241.21,0.0001]
[1737202931025,24.56164036,241.22,241.21,0.0001]
[1737202931241,23.94064036,241.22,241.21,0.0001]
[1737202931752,19.79514036,241.22,241.21,0.0001]
[1737202933465,40.21128072,241.22,241.21,0.0001]
[1737202933966,20.0,241.18,241.13,0.063]
[1737202934165,19.79514036,241.14,241.13,0.063]
[1737202936255,19.79514036,241.2,241.13,0.063]
[1737202936256,4.1457,241.21,241.13,0.063]
[1737202936462,19.79514036,241.15,241.13,0.063]
[1737202937464,23.94194036,241.15,241.13,0.063]
[1737202939446,24.56294036,241.15,241.13,0.063]
[1737202941560,19.79514036,241.14,241.13,0.063]
[1737202943065,20.41614036,241.14,241.13,0.063]
[1737202943467,23.94204036,241.14,241.13,0.063]
[1737202945456,16.53522428,241.14,241.13,0.063]
[1737202945841,20.0,241.11,241.05,0.063]
[1737202946042,0.621,241.1,241.05,0.063]
[1737202946359,12.38832428,241.06,241.05,0.063]
[1737202947460,19.83233708,241.06,241.05,0.063]
[1737202947654,23.98063708,241.06,241.05,0.063]
[1737202950381,24.60163708,241.06,241.05,0.063]
[1737202950869,19.83233708,241.06,241.05,0.063]
[1737202952259,2.16,241.13,241.05,0.063]
[1737202952260,19.83233708,241.08,241.05,0.063]
[1737202952461,19.83233708,241.1,241.05,4.2113]
[1737202952665,19.83233708,241.14,241.06,23.776884]
[1737202952861,19.83233708,241.16,241.07,19.83233708]
[1737202953062,19.83233708,241.16,241.08,23.776884]
[1737202953273,0.03,241.21,241.09,39.83233708]
[1737202953274,19.83233708,241.18,241.09,39.83233708]
[1737202953661,19.83233708,241.18,241.11,19.83233708]
[1737202953862,19.83233708,241.18,241.12,4.1473]
[1737202954175,19.83233708,241.2,241.12,4.1473]
[1737202955079,0.03,241.21,241.15,19.83233708]
[1737202955260,0.03,241.21,241.17,19.83233708]
[1737202956180,0.03,241.21,241.18,4.1462]
[1737202957170,0.03,241.21,241.2,24.1459]
[1737202957977,0.03,241.21,241.2,4.1459]
[1737202958170,0.03,241.21,241.2,27.922784]
[1737202958366,0.03,241.21,241.2,28.502784]
[1737202958565,0.03,241.21,241.2,27.922784]
[1737202960763,0.03,241.32,241.23,20.0]
[1737202960962,0.03,241.32,241.25,19.83233708]
[1737202962265,0.03,241.32,241.26,4.1449]
[1737202962783,0.03,241.32,241.26,4.7249]
[1737202963996,19.83233708,241.27,241.26,0.58]
[1737202964286,49.95722108,241.27,241.1,19.83233708]
[1737202964463,19.83233708,241.17,241.1,19.83233708]
[1737202964659,19.83233708,241.17,241.09,23.776884]
[1737202965082,19.83233708,241.17,241.08,19.83233708]
[1737202965283,19.83233708,241.13,241.07,4.1481]
[1737202965484,19.83233708,241.13,241.06,19.83233708]
[1737202965781,0.621,241.26,241.16,20.0]
[1737202965981,0.03,241.32,241.23,19.83233708]
[1737202965982,19.83233708,241.3,241.23,19.83233708]
[1737202966181,19.86233708,241.32,241.24,23.776884]
[1737202966489,19.83233708,241.3,241.21,19.83233708]
[1737202966690,19.86233708,241.32,241.23,19.83233708]
[1737202968300,19.86233708,241.32,241.24,4.1452]
[1737202970082,19.83233708,241.3,241.22,4.1454]
[1737202970281,19.83233708,241.24,241.15,19.83233708]
[1737202970489,19.83233708,241.22,241.13,19.83233708]
[1737202971394,19.83233708,241.22,241.14,4.1469]
[1737202971694,4.145,241.26,241.11,19.83233708]
[1737202971695,19.83233708,241.2,241.11,19.83233708]
[1737202971894,19.83233708,241.24,241.15,19.83233708]
[1737202972394,19.83233708,241.26,241.17,19.83233708]
[1737202972694,19.83233708,241.28,241.2,23.776884]
[1737202972900,19.83233708,241.3,241.21,19.83233708]
[1737202973593,19.83233708,241.28,241.19,39.83233708]
[1737202973775,19.83233708,241.28,241.2,4.1458]
[1737202973978,19.83233708,241.28,241.2,27.922684]
[1737202974179,19.83233708,241.3,241.22,19.83233708]
[1737202974500,19.83233708,241.3,241.2,47.75502108]
[1737202976190,19.86233708,241.3,241.2,47.75502108]
[1737202978801,19.86233708,241.3,241.25,19.83233708]
[1737202978802,0.03,241.3,241.25,19.83233708]
[1737202980380,0.03,241.3,241.27,19.83233708]
[1737202981305,0.03,241.3,241.28,4.1445]
[1737202981615,0.03,241.3,241.25,19.83233708]
[1737202981912,0.03,241.3,241.24,19.83233708]
[1737202983514,0.03,241.3,241.26,19.83233708]
[1737202985508,0.03,241.3,241.28,19.83233708]
[1737202985805,0.03,241.32,241.31,43.776884]
[1737202986014,0.03,241.32,241.31,64.230594]
[1737202986818,0.0001,241.32,241.31,64.230594]
[1737202986994,0.0001,241.32,241.31,221.36293108]
[1737202987309,0.0001,241.32,241.31,220.74155816]
[1737202987613,0.0001,241.32,241.31,224.88555816]
[1737202988016,0.0001,241.32,241.31,238.88555816]
[1737202988191,0.0001,241.32,241.31,101.58555816]
[1737202988398,0.0001,241.32,241.31,102.2068532]
[1737202988599,0.0001,241.38,241.37,23.776884]
[1737202988810,0.0001,241.38,241.37,44.23039054]
[1737202989006,0.0001,241.38,241.37,181.53039054]
[1737202989192,0.0001,241.38,241.37,180.90922108]
[1737202989718,0.03,241.45,241.44,47.918684]
[1737202989900,0.0001,241.45,241.44,87.58335816]
[1737202990098,0.0001,241.45,241.44,88.20434577]
[1737202990293,0.0001,241.45,241.44,23.97413708]
[1737202990498,0.0001,241.45,241.42,19.83233708]
[1737202991013,0.0001,241.45,241.44,43.60922108]
[1737202991694,0.0001,241.45,241.44,47.75102108]
[1737202992924,0.0001,241.45,241.44,207.14312367]
[1737202993215,0.0001,241.45,241.44,206.52215816]
[1737202994012,0.03,241.51,241.49,23.776884]
[1737202994321,0.03,241.51,241.5,19.83233708]
[1737202994802,27.72623708,241.65,241.54,23.776884]
[1737202994993,27.72623708,241.65,241.57,19.83233708]
[1737202995193,31.86453708,241.65,241.55,19.83233708]
[1737202995416,19.83233708,241.63,241.55,19.83233708]
[1737202995618,27.72623708,241.65,241.57,19.83233708]
[1737202995799,27.72623708,241.65,241.58,23.776884]
[1737202996002,27.72623708,241.65,241.59,19.83233708]
[1737202996003,7.8939,241.65,241.59,19.83233708]
[1737202996320,1.5459,241.65,241.6,23.776884]
[1737202996617,0.03,241.7,241.62,19.83233708]
[1737202996913,0.03,241.7,241.64,19.83233708]
[1737202997519,19.83233708,241.67,241.59,19.83233708]
[1737202997717,19.83233708,241.69,241.61,19.83233708]
[1737202997905,19.83233708,241.69,241.62,4.1387]
[1737202998816,19.83233708,241.69,241.59,19.83233708]
[1737202998817,19.83233708,241.67,241.59,19.83233708]
[1737202999731,19.83233708,241.61,241.52,19.83233708]
[1737202999895,19.83233708,241.61,241.52,23.97263708]
[1737203000098,19.83233708,241.61,241.54,19.83233708]
[1737203000497,19.83233708,241.61,241.52,4.1403]
[1737203000498,19.83233708,241.59,241.52,19.83233708]
[1737203000697,19.83233708,241.59,241.5,19.83233708]
[1737203000893,19.83233708,241.61,241.52,19.83233708]
[1737203001817,19.83233708,241.61,241.54,19.83233708]
[1737203002510,19.83233708,241.61,241.54,23.97233708]
[1737203003116,0.03,241.67,241.59,19.83233708]
[1737203003322,0.03,241.67,241.61,19.83233708]
[1737203004309,0.03,241.67,241.59,23.97133708]
[1737203005417,19.83233708,241.64,241.55,19.83233708]
[1737203008433,23.97083708,241.64,241.55,23.97223708]
[1737203009032,19.83233708,241.66,241.57,19.83233708]
[1737203011317,19.83233708,241.66,241.58,4.1394]
[1737203011513,19.83233708,241.6,241.51,19.89533708]
[1737203012028,19.83233708,241.62,241.53,19.83233708]
[1737203012732,19.83233708,241.62,241.54,4.1401]
[1737203013327,19.83233708,241.6,241.51,19.89533708]
[1737203013525,4.1388,241.62,241.51,0.063]
[1737203013526,19.83233708,241.58,241.51,0.063]
[1737203013728,19.83233708,241.56,241.51,0.063]
[1737203013928,8.7152,241.61,241.51,0.063]
[1737203013929,19.83233708,241.53,241.51,0.063]
[1737203014329,8.0942,241.52,241.39,19.83233708]
[1737203014632,19.83233708,241.46,241.39,19.83233708]
[1737203014938,19.83233708,241.5,241.41,19.83233708]
[1737203016019,19.83233708,241.5,241.42,4.1421]
[1737203016933,19.83233708,241.46,241.37,19.83233708]
[1737203017112,19.83233708,241.46,241.32,10.3596]
[1737203017113,19.83233708,241.42,241.34,19.83233708]
[1737203017318,19.83233708,241.36,241.27,4.1445]
[1737203017640,19.83233708,241.34,241.26,0.063]
[1737203018830,19.83233708,241.36,241.28,19.83233708]
[1737203019030,19.83233708,241.38,241.3,19.83233708]
[1737203019233,1.5398,241.39,241.3,19.83233708]
[1737203019437,1.5398,241.39,241.32,19.83233708]
[1737203019937,26.38673708,241.4,241.32,19.83233708]
[1737203020144,26.38673708,241.4,241.32,23.97613708]
[1737203020632,6.5544,241.4,241.34,19.83233708]
[1737203021032,6.5544,241.4,241.33,19.83233708]
[1737203022835,30.52923708,241.4,241.31,19.83233708]
[1737203023144,19.83233708,241.36,241.28,19.83233708]
[1737203025418,27.00773708,241.4,241.33,0.063]
[1737203025625,6.5544,241.4,241.34,19.83233708]
[1737203028341,19.83233708,241.42,241.34,19.83233708]
[1737203028528,8.1936,241.45,241.36,19.83233708]
[1737203028529,23.97423708,241.44,241.36,19.83233708]
[1737203028724,4.1419,241.44,241.38,19.83233708]
[1737203028924,8.1936,241.45,241.38,19.83233708]
[1737203029249,1.5398,241.45,241.4,19.83233708]
[1737203029450,6.6538,241.51,241.44,19.83233708]
[1737203029628,21.46873708,241.54,241.46,19.83233708]
[1737203029828,19.83233708,241.56,241.48,19.83233708]
[1737203030035,6.6538,241.57,241.5,19.83233708]
[1737203030437,6.6538,241.57,241.51,4.1406]
[1737203030642,1.6364,241.6,241.54,19.83233708]
[1737203031156,6.6538,241.63,241.56,19.83233708]
[1737203032756,6.6538,241.63,241.56,23.97203708]
[1737203033639,26.48613708,241.63,241.56,23.97203708]
[1737203033847,30.62463708,241.63,241.54,19.83233708]
[1737203035332,19.83233708,241.61,241.52,19.83233708]
[1737203035855,30.62463708,241.63,241.54,19.83233708]
[1737203036351,26.48613708,241.63,241.54,19.83233708]
[1737203037257,26.51613708,241.63,241.54,19.83233708]
[1737203037460,26.51613708,241.63,241.56,19.83233708]
[1737203038058,6.6838,241.63,241.56,19.83233708]
[1737203038237,6.6838,241.63,241.56,23.97193708]
[1737203038947,26.51613708,241.63,241.56,23.97193708]
[1737203039241,19.83233708,241.61,241.54,19.83233708]
[1737203039435,26.51613708,241.63,241.56,19.83233708]
[1737203040452,0.03,241.63,241.58,19.83233708]
[1737203041559,0.03,241.63,241.59,4.1392]
[1737203042457,0.03,241.63,241.62,19.83233708]
[1737203043350,0.03,241.63,241.62,43.60922108]
[1737203043555,0.03,241.63,241.6,4.139]
[1737203043859,0.03,241.63,241.62,19.83233708]
[1737203045567,0.03,241.63,241.62,23.97103708]
[1737203046362,0.03,241.63,241.62,19.83233708]
[1737203046663,0.03,241.63,241.56,19.83233708]
[1737203047360,0.03,241.63,241.58,19.83233708]
[1737203047768,0.03,241.63,241.6,19.83233708]
[1737203047965,0.03,241.63,241.62,19.83233708]
[1737203048160,20.0,241.62,241.58,19.83233708]
[1737203048461,0.03,241.63,241.56,19.83233708]
[1737203048761,25.92893708,241.63,241.54,19.83233708]
[1737203049452,0.03,241.63,241.58,19.83233708]
[1737203049654,0.03,241.63,241.6,19.83233708]
[1737203051474,0.03,241.63,241.61,4.1389]
[1737203052052,0.03,241.63,241.6,19.83233708]
[1737203052549,0.03,241.63,241.59,4.1391]
[1737203053673,0.03,241.63,241.6,19.83233708]
[1737203054979,19.86233708,241.63,241.51,10.4143]
[1737203055177,19.86233708,241.63,241.53,19.83233708]
[1737203055361,0.03,241.63,241.57,19.83233708]
[1737203055560,0.03,241.63,241.59,19.83233708]
[1737203055983,0.03,241.63,241.57,19.83233708]
[1737203056363,0.03,241.63,241.54,4.1399]
[1737203056364,24.00083708,241.63,241.54,4.1399]
[1737203056568,19.83233708,241.61,241.53,19.83233708]
[1737203056781,27.72913708,241.61,241.52,4.1402]
[1737203056956,19.83233708,241.59,241.52,4.1402]
[1737203057377,27.72913708,241.61,241.52,23.97253708]
[1737203057652,31.86803708,241.61,241.52,23.97253708]
[1737203058481,19.83233708,241.55,241.51,0.063]
[1737203058690,19.83233708,241.53,241.51,0.063]
[1737203059072,19.83233708,241.57,241.51,0.063]
[1737203059580,23.97203708,241.57,241.51,0.063]
[1737203059761,19.83233708,241.55,241.51,0.063]
[1737203061284,0.02,241.57,241.51,24.03573708]
[1737203062168,0.02,241.57,241.53,19.83233708]
[1737203062579,0.02,241.57,241.55,19.83233708]
[1737203063567,0.02,241.57,241.56,4.1397]
[1737203063773,0.02,241.57,241.56,28.537397]
[1737203064061,0.02,241.57,241.56,48.36973408]
[1737203066181,0.02,241.57,241.56,60.13973408]
[1737203066379,0.02,241.57,241.56,197.43973408]
[1737203066580,0.03,241.66,241.59,20.0]
[1737203066759,0.03,241.66,241.62,19.83233708]
[1737203067185,0.03,241.66,241.62,23.97103708]
[1737203068375,0.03,241.66,241.62,47.74792108]
[1737203069063,0.03,241.66,241.62,48.36847376]
[1737203069263,0.03,241.66,241.65,20.0]
[1737203069466,0.03,241.66,241.65,39.83233708]
[1737203070375,0.03,241.66,241.65,63.60922108]
[1737203070890,0.0001,241.66,241.65,19.83233708]
[1737203071266,0.0001,241.66,241.65,23.97053708]
[1737203071682,0.0001,241.66,241.65,43.97053708]
[1737203072198,0.0001,241.66,241.65,55.74053708]
[1737203072563,0.0001,241.66,241.65,79.51742108]
[1737203072768,0.0001,241.66,241.65,55.74053708]
[1737203073878,0.0001,241.66,241.65,79.51742108]
[1737203074875,0.0001,241.66,241.65,79.58042108]
[1737203075795,0.0001,241.67,241.66,23.776884]
[1737203075995,1.529,241.83,241.69,20.0]
[1737203076167,1.529,241.83,241.76,19.83233708]
[1737203077382,1.529,241.83,241.76,23.96863708]
[1737203078484,1.529,241.83,241.78,19.83233708]
[1737203078679,5.6642,241.83,241.76,19.83233708]
[1737203079183,1.529,241.83,241.76,19.83233708]
[1737203079382,1.529,241.83,241.76,23.96843708]
[1737203081590,1.529,241.83,241.79,12.31342496]
[1737203081782,20.33762496,241.88,241.81,12.31342496]
[1737203082697,12.31342496,241.84,241.7,16.534371]
[1737203082907,12.31342496,241.84,241.76,12.31342496]
[1737203083595,12.31342496,241.84,241.76,16.44952496]
[1737203084281,4.1349,241.85,241.76,16.44952496]
[1737203084906,12.31342496,241.86,241.78,12.31342496]
[1737203085578,16.44812496,241.86,241.78,12.31342496]
[1737203086495,16.44812496,241.86,241.72,10.3424]
[1737203086696,16.44812496,241.86,241.68,12.31342496]
[1737203086697,12.31342496,241.84,241.74,12.31342496]
[1737203086885,12.31342496,241.82,241.74,12.31342496]
[1737203087087,12.31342496,241.8,241.7,12.31342496]
[1737203087287,12.31342496,241.8,241.72,12.31342496]
[1737203088299,12.31342496,241.8,241.71,12.31342496]
[1737203088679,4.1349,241.84,241.73,12.31342496]
[1737203088878,12.31342496,241.81,241.73,12.31342496]
[1737203089402,12.31342496,241.83,241.73,12.31342496]
[1737203090086,12.31342496,241.83,241.75,12.31342496]
[1737203090293,4.1647,241.86,241.77,12.31342496]
[1737203090596,12.31342496,241.85,241.77,12.31342496]
[1737203091703,12.31342496,241.85,241.77,16.44942496]
[1737203096099,12.31342496,241.83,241.74,4.1365]
[1737203096292,12.31342496,241.81,241.74,4.1365]
[1737203097402,16.44892496,241.81,241.73,12.31342496]
[1737203097592,12.31342496,241.84,241.75,12.31342496]
[1737203098506,12.31342496,241.82,241.73,16.45022496]
[1737203098690,12.31342496,241.82,241.73,12.31342496]
[1737203098903,4.1354,241.81,241.73,12.31342496]
[1737203099200,4.1354,241.81,241.7,0.063]
[1737203099201,12.31342496,241.75,241.7,0.063]
[1737203099400,12.31342496,241.73,241.7,0.063]
[1737203100797,16.45032496,241.73,241.7,0.063]
[1737203102812,16.45002496,241.75,241.7,0.063]
[1737203102992,16.44962496,241.77,241.7,0.063]
[1737203103412,12.31342496,241.74,241.7,0.063]